bitfinex/quotes_SOLUSD_20230103
["timestamp","ask_amount","ask_price","bid_price","bid_amount"]
[1672759960761,40.03365456,12.819,12.808,135.3652023]
[1672759960975,40.03365456,12.819,12.81,8.55]
[1672759961185,40.03365456,12.819,12.81,17.27]
[1672759961816,30.0,12.819,12.81,17.27]
[1672759962243,40.03365456,12.82,12.81,17.27]
[1672759962443,40.03365456,12.82,12.81,8.72]
[1672759962658,40.03365456,12.82,12.808,134.80883451]
[1672759962659,30.0,12.819,12.808,134.80883451]
[1672759962868,30.0,12.819,12.807,403.24589757]
[1672759963101,12.53621153,12.818,12.807,403.24589757]
[1672759964153,12.53621153,12.818,12.808,30.0]
[1672759964342,12.53621153,12.821,12.808,30.0]
[1672759964552,30.0,12.82,12.808,30.0]
[1672759964763,30.0,12.82,12.807,403.24589757]
[1672759964967,3.57749797,12.819,12.807,403.24589757]
[1672759965393,3.57749797,12.819,12.808,30.0]
[1672759965604,30.0,12.824,12.81,8.55]
[1672759965810,23.0608,12.822,12.81,8.55]
[1672759966460,23.0608,12.822,12.81,43.13]
[1672759966874,646.19486815,12.827,12.81,43.13]
[1672759967077,646.19486815,12.827,12.82,8.58]
[1672759967836,30.0,12.826,12.811,30.0]
[1672759968041,646.19486815,12.827,12.811,30.0]
[1672759968240,646.19486815,12.827,12.81,8.66]
[1672759968457,30.0,12.826,12.81,8.66]
[1672759968986,30.0,12.826,12.811,44.00700431]
[1672759969185,30.0,12.826,12.808,164.80883451]
[1672759969186,52.22615796,12.825,12.808,134.80883451]
[1672759969619,30.0,12.824,12.807,403.24589757]
[1672759969833,30.0,12.824,12.807,401.74589757]
[1672759970029,82.22615796,12.824,12.807,401.74589757]
[1672759972575,82.22615796,12.824,12.807,270.62967521]
[1672759972886,82.22615796,12.824,12.807,401.74589757]
[1672759973094,82.22615796,12.824,12.807,270.62967521]
[1672759982040,646.19486815,12.827,12.81,8.6]
[1672759982358,30.0,12.826,12.81,8.6]
[1672759982576,30.0,12.826,12.803,155.7540286]
[1672759982767,118.148,12.825,12.803,228.25875009]
[1672759982974,118.148,12.825,12.804,209.31962]
[1672759983732,30.0,12.824,12.81,8.55]
[1672759985514,30.0,12.826,12.813,72.50472149]
[1672759985937,646.19486815,12.827,12.813,72.50472149]
[1672759985938,646.19486815,12.827,12.82,8.55]
[1672759986133,646.19486815,12.827,12.82,42.96]
[1672759987406,646.19486815,12.827,12.821,30.0]
[1672759987816,646.19486815,12.827,12.82,42.96]
[1672759988030,646.19486815,12.827,12.82,115.46472149]
[1672759988243,646.19486815,12.827,12.821,30.0]
[1672759989076,646.19486815,12.827,12.82,8.59]
[1672759989279,646.19486815,12.827,12.821,44.00700431]
[1672759989497,646.19486815,12.827,12.82,8.59]
[1672759990253,646.19486815,12.827,12.821,72.50472149]
[1672759990467,30.0,12.826,12.821,72.50472149]
[1672759990866,30.0,12.826,12.817,72.50472149]
[1672759992033,30.0,12.826,12.817,206.59554156]
[1672759992362,30.0,12.826,12.817,72.50472149]
[1672759993283,30.0,12.826,12.818,72.50472149]
[1672759994012,30.0,12.826,12.818,206.29099263]
[1672759994228,30.0,12.826,12.819,72.50472149]
[1672759994440,30.0,12.826,12.817,72.50472149]
[1672759996017,30.0,12.826,12.82,8.63]
[1672759996547,646.19486815,12.827,12.82,8.63]
[1672759996763,646.19486815,12.827,12.824,72.50472149]
[1672759997280,646.19486815,12.827,12.825,72.50472149]
[1672759998115,646.19486815,12.828,12.825,72.50472149]
[1672759998116,646.19486815,12.828,12.827,144.07791967]
[1672759998333,1292.3897363,12.828,12.827,159.14488753]
[1672759998536,1292.3897363,12.828,12.827,144.07791967]
[1672760003273,1292.3897363,12.828,12.826,0.01264116]
[1672760003485,30.0,12.827,12.82,8.6]
[1672760004115,30.0,12.827,12.818,75.79913944]
[1672760004325,676.19486815,12.827,12.819,75.79913944]
[1672760004535,1.0,12.823,12.819,59.29893944]
[1672760004759,1.0,12.823,12.811,144.20459504]
[1672760004977,1.0,12.823,12.816,144.20459504]
[1672760005795,1.0,12.823,12.81,175.5380687]
[1672760005796,1.0,12.823,12.813,144.20459504]
[1672760006007,1.0,12.823,12.814,30.0]
[1672760006232,1.0,12.823,12.816,144.20459504]
[1672760009389,30.0,12.826,12.825,0.00800119]
[1672760009578,30.0,12.826,12.812,144.20459504]
[1672760010525,30.0,12.826,12.817,144.20459504]
[1672760010831,30.0,12.826,12.814,144.20459504]
[1672760011052,30.0,12.826,12.81,144.20459504]
[1672760011263,30.0,12.826,12.809,144.20459504]
[1672760012512,30.0,12.826,12.81,144.20459504]
[1672760013481,30.0,12.826,12.805,144.20459504]
[1672760013670,30.0,12.826,12.807,144.20459504]
[1672760013671,72.17121001,12.825,12.807,144.20459504]
[1672760013879,72.17121001,12.825,12.808,144.20459504]
[1672760014107,70.5766,12.825,12.809,20.0]
[1672760014428,30.0,12.824,12.809,20.0]
[1672760015145,30.0,12.824,12.806,20.0]
[1672760015356,100.9558,12.824,12.807,144.20459504]
[1672760015565,100.9558,12.824,12.808,20.0]
[1672760016201,100.9558,12.824,12.803,20.0]
[1672760016406,70.9558,12.823,12.803,20.0]
[1672760016623,70.9558,12.823,12.8,144.20459504]
[1672760016826,30.0,12.824,12.8,144.20459504]
[1672760016827,183.0194,12.822,12.8,144.20459504]
[1672760017262,30.0,12.82,12.8,144.20459504]
[1672760017562,48.65880331,12.819,12.799,144.20459504]
[1672760017779,118.43680331,12.819,12.797,144.20459504]
[1672760018104,30.0,12.817,12.798,1.70983556]
[1672760018315,2.8616781,12.816,12.796,144.20459504]
[1672760018509,123.21213664,12.816,12.794,130.30964484]
[1672760018712,30.0,12.817,12.794,130.30964484]
[1672760018713,249.44471575,12.815,12.797,1.70996919]
[1672760019137,60.10746997,12.814,12.796,1.70983556]
[1672760019367,14.58496703,12.811,12.796,1.70983556]
[1672760019557,14.58496703,12.811,12.795,1.70996919]
[1672760019764,18.58400239,12.809,12.794,1.71010283]
[1672760020200,30.0,12.808,12.794,1.71010283]
[1672760020408,18.58400239,12.807,12.794,1.71010283]
[1672760020611,18.58400239,12.805,12.794,1.71010283]
[1672760021249,22.18891449,12.803,12.794,1.71010283]
[1672760021468,40.77291688,12.803,12.794,1.71010283]
[1672760021864,40.77291688,12.803,12.793,108.01330878]
[1672760021865,8.62,12.8,12.793,108.01330878]
[1672760022079,24.71926283,12.798,12.784,133.32039679]
[1672760022291,24.71926283,12.796,12.784,133.32039679]
[1672760022514,24.71926283,12.796,12.779,135.20600191]
[1672760022940,24.71926283,12.796,12.781,131.59510389]
[1672760023155,30.0,12.795,12.781,131.59510389]
[1672760023366,24.71926283,12.794,12.78,135.69079375]
[1672760023549,24.71926283,12.794,12.779,135.20600191]
[1672760024188,30.0,12.793,12.779,135.20600191]
[1672760024406,26.80251622,12.792,12.77,8.66]
[1672760025039,30.0,12.791,12.77,8.66]
[1672760025348,28.75198903,12.79,12.77,8.66]
[1672760025778,28.75198903,12.79,12.77,43.18]
[1672760026190,30.0,12.789,12.76,73.22]
[1672760026402,31.93677429,12.788,12.76,73.22]
[1672760026934,31.93677429,12.788,12.76,30.0]
[1672760027246,30.0,12.787,12.778,124.52783337]
[1672760027462,40.03365456,12.786,12.778,124.52783337]
[1672760027667,103.29905019,12.786,12.778,124.52783337]
[1672760027880,247.14291949,12.777,12.74,8.7]
[1672760028078,128.79365456,12.776,12.757,142.61616726]
[1672760028406,128.79365456,12.776,12.757,127.64616726]
[1672760028620,66.4720623,12.775,12.757,114.97616726]
[1672760028826,43.11,12.77,12.757,114.97616726]
[1672760029029,98.82365456,12.769,12.757,114.97616726]
[1672760029235,30.0,12.768,12.757,114.97616726]
[1672760029446,40.03365456,12.767,12.757,114.97616726]
[1672760029782,30.0,12.766,12.757,114.97616726]
[1672760029977,40.03365456,12.765,12.757,114.97616726]
[1672760030192,30.0,12.764,12.757,114.97616726]
[1672760030402,40.03365456,12.763,12.757,114.97616726]
[1672760030724,165.32571686,12.763,12.757,114.97616726]
[1672760030929,98.85365456,12.763,12.757,114.97616726]
[1672760031142,66.4720623,12.762,12.757,113.97616726]
[1672760031351,58.83,12.761,12.757,113.97616726]
[1672760031570,40.03365456,12.76,12.757,113.97616726]
[1672760031781,58.84,12.759,12.757,113.97616726]
[1672760031971,40.03365456,12.758,12.757,112.97616726]
[1672760032179,66.4720623,12.762,12.757,112.97616726]
[1672760032391,98.86365456,12.761,12.757,112.97616726]
[1672760032706,66.4720623,12.76,12.757,112.97616726]
[1672760032923,40.03365456,12.758,12.757,112.97616726]
[1672760033131,40.03365456,12.768,12.757,112.97616726]
[1672760033350,40.03365456,12.762,12.757,112.97616726]
[1672760033553,40.03365456,12.76,12.757,95.31616726]
[1672760033876,40.03365456,12.758,12.757,95.31616726]
[1672760034080,98.87365456,12.758,12.757,95.31616726]
[1672760034292,165.34571686,12.758,12.757,95.31616726]
[1672760034502,195.34571686,12.758,12.757,95.31616726]
[1672760034822,195.34571686,12.758,12.757,26.36268601]
[1672760035351,195.34571686,12.758,12.72,8.6]
[1672760035683,30.0,12.755,12.72,42.12]
[1672760035860,98.89365456,12.754,12.72,42.12]
[1672760036067,98.89365456,12.754,12.73,8.55]
[1672760036278,98.89365456,12.754,12.73,17.22]
[1672760036604,40.03365456,12.754,12.72,43.11]
[1672760036802,40.03365456,12.752,12.72,43.11]
[1672760037135,40.03365456,12.75,12.73,8.58]
[1672760037342,40.03365456,12.75,12.73,42.99]
[1672760037658,40.03365456,12.752,12.73,42.99]
[1672760037976,40.03365456,12.752,12.74,8.63]
[1672760038285,94.8743,12.756,12.74,17.3]
[1672760038286,40.03365456,12.744,12.74,17.3]
[1672760038478,40.03365456,12.744,12.73,129.36]
[1672760038692,40.03365456,12.744,12.73,43.01]
[1672760039540,40.03365456,12.751,12.73,43.01]
[1672760039755,40.03365456,12.751,12.74,8.63]
[1672760040066,40.03365456,12.755,12.74,43.15]
[1672760040284,120.0,12.741,12.74,43.15]
[1672760040489,40.03365456,12.74,12.73,129.33]
[1672760040738,120.0,12.745,12.73,129.33]
[1672760040915,120.0,12.753,12.731,136.22351688]
[1672760042079,23.5585,12.756,12.74,129.45]
[1672760042297,23.5585,12.756,12.75,129.46]
[1672760042506,560.43009567,12.762,12.75,129.46]
[1672760043030,560.43009567,12.762,12.75,8.62]
[1672760043443,560.43009567,12.762,12.75,43.14]
[1672760044285,120.0,12.751,12.75,43.14]
[1672760044608,128.47927313,12.748,12.74,8.68]
[1672760044824,120.0,12.745,12.74,8.68]
[1672760045033,120.0,12.745,12.73,43.11]
[1672760045221,1.71000003,12.744,12.73,43.11]
[1672760045754,1.71000003,12.744,12.73,8.59]
[1672760049321,1.71000003,12.744,12.73,43.11]
[1672760049531,128.47927313,12.748,12.73,8.59]
[1672760049532,58.89,12.747,12.73,8.59]
[1672760050175,128.47927313,12.748,12.73,8.59]
[1672760050489,58.89,12.747,12.72,8.59]
[1672760050705,58.89,12.747,12.72,7.59]
[1672760050898,128.47927313,12.748,12.72,7.59]
[1672760051106,128.47927313,12.748,12.72,42.17]
[1672760051735,58.89,12.747,12.72,42.17]
[1672760051945,58.89,12.747,12.72,8.7]
[1672760052154,30.0,12.744,12.72,8.7]
[1672760052792,30.0,12.744,12.711,59.06]
[1672760053328,8.63,12.74,12.711,59.06]
[1672760053529,8.63,12.74,12.711,58.06]
[1672760053743,43.12,12.74,12.702,875.07279305]
[1672760054062,155.2296,12.739,12.702,875.07279305]
[1672760054275,155.2296,12.739,12.703,59.1]
[1672760054500,202.71212557,12.739,12.703,55.6]
[1672760054712,202.71212557,12.739,12.703,54.6]
[1672760054929,30.0,12.738,12.703,54.6]
[1672760055125,58.94,12.737,12.703,54.6]
[1672760055329,230.82082557,12.738,12.703,54.6]
[1672760055534,230.82082557,12.738,12.702,874.07279305]
[1672760055535,43.1,12.73,12.702,874.07279305]
[1672760055755,58.98,12.729,12.702,874.07279305]
[1672760055955,30.0,12.727,12.702,874.07279305]
[1672760056169,58.99,12.726,12.702,874.07279305]
[1672760056514,58.98,12.729,12.702,874.07279305]
[1672760056692,8.56,12.72,12.702,874.07279305]
[1672760056896,8.58,12.71,12.702,874.07279305]
[1672760057112,89.02,12.719,12.702,783.02008831]
[1672760057534,89.02,12.719,12.702,780.52008831]
[1672760058071,89.02,12.719,12.681,59.2]
[1672760058381,30.0,12.708,12.69,33.93]
[1672760058597,214.6037,12.718,12.7,17.27]
[1672760058800,24.939,12.718,12.701,59.11]
[1672760059537,24.939,12.718,12.702,20.0]
[1672760059751,24.939,12.718,12.71,8.58]
[1672760059958,24.939,12.718,12.711,59.06]
[1672760061102,24.939,12.718,12.712,20.0]
[1672760061315,24.939,12.718,12.713,59.05]
[1672760061525,71.0147,12.735,12.714,20.0]
[1672760061744,71.0147,12.735,12.715,59.04]
[1672760061963,71.0147,12.735,12.716,20.0]
[1672760062170,71.0147,12.735,12.72,8.6]
[1672760062492,576.84891895,12.741,12.721,20.0]
[1672760062680,57.02880252,12.719,12.711,59.06]
[1672760064051,57.02880252,12.719,12.712,20.0]
[1672760064251,57.02880252,12.719,12.713,59.05]
[1672760064471,57.02880252,12.719,12.714,20.0]
[1672760064689,57.02880252,12.719,12.715,59.04]
[1672760064902,57.02880252,12.719,12.711,59.06]
[1672760065827,57.02880252,12.719,12.711,58.06]
[1672760066038,57.02880252,12.719,12.712,20.0]
[1672760066262,57.02880252,12.719,12.713,59.05]
[1672760066473,57.02880252,12.719,12.714,20.0]
[1672760066890,57.02880252,12.719,12.71,43.19]
[1672760067536,57.02880252,12.719,12.711,59.06]
[1672760068368,57.02880252,12.719,12.71,43.19]
[1672760069537,57.02880252,12.719,12.711,59.06]
[1672760069748,57.02880252,12.719,12.711,79.06]
[1672760072062,57.02880252,12.719,12.711,59.06]
[1672760073308,57.02880252,12.719,12.712,64.45564253]
[1672760073640,57.02880252,12.719,12.713,79.05]
[1672760074566,57.02880252,12.719,12.713,20.0]
[1672760074779,57.02880252,12.719,12.714,59.05]
[1672760075007,57.02880252,12.719,12.715,20.0]
[1672760075194,57.02880252,12.719,12.716,59.04]
[1672760075637,57.02880252,12.719,12.717,20.0]
[1672760076047,57.02880252,12.719,12.718,59.03]
[1672760076244,57.02880252,12.719,12.718,79.03]
[1672760076457,57.02880252,12.719,12.718,149.97697569]
[1672760078680,544.04094223,12.722,12.718,149.97697569]
[1672760078912,526.64356224,12.722,12.719,77.02880252]
[1672760079090,511.58204224,12.722,12.72,59.02]
[1672760079293,511.58204224,12.722,12.721,19.0]
[1672760079502,511.58204224,12.723,12.721,148.95697569]
[1672760079720,511.58204224,12.722,12.721,89.94697569]
[1672760079927,245.48784607,12.753,12.721,19.0]
[1672760080137,511.5820506,12.732,12.722,33.69]
[1672760080563,511.5820506,12.732,12.723,62.55703569]
[1672760080773,511.5820506,12.732,12.724,33.68]
[1672760081202,511.5820506,12.732,12.725,82.55703569]
[1672760081412,511.5820506,12.732,12.726,33.68]
[1672760081624,511.5820506,12.732,12.727,20.0]
[1672760081939,511.5820506,12.732,12.728,33.67]
[1672760082149,511.5820506,12.732,12.729,20.0]
[1672760082368,511.5820506,12.732,12.73,33.67]
[1672760082576,511.5820506,12.732,12.731,20.0]
[1672760082781,511.5820506,12.732,12.731,53.67]
[1672760083203,443.18649921,12.732,12.731,119.52036902]
[1672760083402,380.11060182,12.732,12.731,119.52036902]
[1672760083733,321.94060756,12.732,12.731,119.52036902]
[1672760083944,321.94060756,12.732,12.731,53.67]
[1672760084155,268.29494619,12.732,12.731,103.08477729]
[1672760084343,218.82172514,12.732,12.731,103.08477729]
[1672760084865,123.00156699,12.732,12.731,103.08477729]
[1672760085090,123.00156699,12.732,12.731,53.67]
[1672760086129,80.60560877,12.732,12.731,53.67]
[1672760087385,41.50711397,12.732,12.731,53.67]
[1672760088963,41.50711397,12.732,12.731,53.17]
[1672760089177,0.55739114,12.732,12.731,53.17]
[1672760089404,359.66918978,12.775,12.731,53.17]
[1672760089628,401.82416984,12.733,12.732,108.98221709]
[1672760089844,401.82416984,12.733,12.732,58.96]
[1672760090246,401.82416984,12.733,12.732,78.96]
[1672760091080,401.82416984,12.733,12.732,77.96]
[1672760091291,401.82416984,12.733,12.727,58.99]
[1672760091502,401.82416984,12.733,12.721,59.01]
[1672760091712,401.82416984,12.733,12.722,72.13062052]
[1672760091926,401.82416984,12.733,12.723,59.0]
[1672760092138,401.82416984,12.733,12.723,101.13062052]
[1672760092564,401.82416984,12.733,12.72,8.55]
[1672760093304,401.82416984,12.733,12.712,59.06]
[1672760093614,401.82416984,12.733,12.713,20.0]
[1672760093816,401.82416984,12.733,12.714,59.05]
[1672760094247,401.82416984,12.733,12.712,59.06]
[1672760094861,401.82416984,12.733,12.711,22.7567]
[1672760097001,401.82416984,12.733,12.711,22.2567]
[1672760099597,401.82416984,12.733,12.712,79.06]
[1672760100026,401.82416984,12.733,12.72,8.63]
[1672760100237,401.82416984,12.733,12.721,20.0]
[1672760103064,401.82416984,12.733,12.721,74.31994052]
[1672760104560,401.82416984,12.733,12.721,20.0]
[1672760105418,401.82416984,12.733,12.721,136.36327385]
[1672760106763,401.82416984,12.733,12.721,77.35327385]
[1672760108461,401.82416984,12.733,12.721,20.0]
[1672760108656,401.82416984,12.733,12.719,58.65327385]
[1672760108657,401.82416984,12.733,12.72,20.0]
[1672760108867,401.82416984,12.733,12.722,58.65327385]
[1672760109195,401.82416984,12.733,12.723,20.0]
[1672760109598,401.82416984,12.733,12.718,79.03]
[1672760109808,401.82416984,12.733,12.72,43.12]
[1672760110015,401.82416984,12.733,12.723,58.65327385]
[1672760110236,401.82416984,12.733,12.724,20.0]
[1672760110564,401.82416984,12.733,12.725,62.56194052]
[1672760110769,401.82416984,12.733,12.726,78.99]
[1672760110981,401.82416984,12.733,12.726,20.0]
[1672760111196,401.82416984,12.733,12.727,62.56194052]
[1672760111400,401.82416984,12.733,12.728,20.0]
[1672760111708,401.82416984,12.733,12.729,66.13260718]
[1672760111926,401.82416984,12.733,12.73,20.0]
[1672760112348,401.82416984,12.733,12.731,66.13260718]
[1672760112558,401.82416984,12.733,12.732,20.0]
[1672760112977,401.82416984,12.733,12.732,145.09260718]
[1672760113711,401.82416984,12.733,12.732,125.09260718]
[1672760113900,401.82416984,12.733,12.72,43.07]
[1672760114114,401.82416984,12.733,12.73,66.13260718]
[1672760114879,401.82416984,12.733,12.721,59.01]
[1672760115607,401.82416984,12.733,12.722,66.13260718]
[1672760115925,401.82416984,12.733,12.723,59.0]
[1672760116236,401.82416984,12.733,12.724,86.13260718]
[1672760116453,401.82416984,12.733,12.725,59.0]
[1672760116669,401.82416984,12.733,12.726,20.0]
[1672760116856,401.82416984,12.733,12.726,86.13260718]
[1672760117190,401.82416984,12.733,12.727,66.13260718]
[1672760117381,337.50446984,12.733,12.728,78.98]
[1672760117590,276.34636984,12.733,12.728,78.98]
[1672760117803,276.34636984,12.733,12.729,69.12591374]
[1672760118009,276.34636984,12.733,12.73,78.97]
[1672760118433,276.34636984,12.733,12.731,69.12591374]
[1672760118757,276.34636984,12.733,12.732,78.96]
[1672760119171,276.34636984,12.733,12.732,148.08591374]
[1672760120235,20.0,12.75,12.733,71.3351428]
[1672760120424,20.0,12.75,12.734,84.04065887]
[1672760120425,1895.33949105,12.741,12.734,84.04065887]
[1672760120632,1895.33949105,12.741,12.736,84.04065887]
[1672760120864,1895.33949105,12.741,12.738,84.04065887]
[1672760121067,1895.33949105,12.741,12.74,84.04065887]
[1672760121264,1895.33949105,12.741,12.74,1346.32886277]
[1672760121686,1892.33949105,12.741,12.74,1346.32886277]
[1672760121914,1892.33949105,12.741,12.74,1418.16745709]
[1672760122857,374.97060985,12.741,12.74,1418.16745709]
[1672760123784,2976.71475104,20.0,12.74,1418.16745709]
[1672760123995,2003.33232238,12.748,12.742,84.04065887]
[1672760124206,2003.33232238,12.748,12.744,84.04065887]
[1672760124747,2003.33232238,12.748,12.745,71.83859432]
[1672760124951,2003.33232238,12.748,12.746,46.07045516]
[1672760125370,128.47927313,12.748,12.746,117.90904948]
[1672760125572,2003.33232238,12.748,12.747,70.04045516]
[1672760126011,2003.33232238,12.748,12.747,141.87904948]
[1672760126222,2003.33232238,12.748,12.747,117.90904948]
[1672760126534,1929.56272265,12.748,12.747,141.87904948]
[1672760127465,511.29846887,12.748,12.747,141.87904948]
[1672760127679,331.33934805,12.751,12.747,171.87904948]
[1672760127901,331.33934805,12.751,12.75,58.98863145]
[1672760128128,329.99956806,12.751,12.75,117.86863145]
[1672760128428,329.99956806,12.751,12.75,124.32522901]
[1672760128648,329.99956806,12.751,12.75,172.3529062]
[1672760128850,329.99956806,12.751,12.75,154.32522901]
[1672760130416,329.99956806,12.752,12.75,154.32522901]
[1672760130623,1764.97097139,12.768,12.751,129.40222061]
[1672760130944,1764.97097139,12.768,12.752,71.38230415]
[1672760131161,316.66748264,12.77,12.754,59.01744419]
[1672760131357,316.66748264,12.77,12.768,70.53222061]
[1672760131566,316.66748264,12.77,12.769,59.01744419]
[1672760131773,316.66748264,12.774,12.761,58.83]
[1672760131774,74.11811476,12.8,12.762,59.01744419]
[1672760131984,74.11811476,12.8,12.761,58.83]
[1672760131985,316.36748264,12.77,12.764,59.01744419]
[1672760132192,316.36748264,12.77,12.767,59.01744419]
[1672760132749,1602.323855,12.779,12.768,73.86456234]
[1672760133050,1591.823855,12.779,12.771,59.01744419]
[1672760133582,1591.823855,12.779,12.773,59.01744419]
[1672760133985,1591.823855,12.779,12.774,73.86456234]
[1672760134193,1591.823855,12.779,12.775,59.01744419]
[1672760134723,1591.823855,12.779,12.776,132.62456234]
[1672760134936,1591.823855,12.779,12.776,73.86456234]
[1672760135140,1591.823855,12.779,12.777,132.62456234]
[1672760135469,662.38103378,12.791,12.783,159.18238549]
[1672760135682,2236.1482125,12.79,12.785,234.70661867]
[1672760135872,2236.1482125,12.79,12.786,58.71]
[1672760136616,2236.1482125,12.79,12.786,134.3575451]
[1672760137048,2236.1482125,12.79,12.785,132.02247299]
[1672760137656,2236.1482125,12.79,12.785,53.63412964]
[1672760138605,2236.1482125,12.79,12.785,53.52413595]
[1672760140278,2236.1482125,12.79,12.786,131.9480894]
[1672760140705,2236.1482125,12.79,12.787,73.2380894]
[1672760140916,2236.1482125,12.79,12.788,58.7]
[1672760141340,2236.1482125,12.79,12.789,73.22476116]
[1672760141666,2236.1482125,12.79,12.786,58.71]
[1672760142402,2236.1482125,12.79,12.786,131.93476116]
[1672760143548,654.3107993,12.79,12.786,131.93476116]
[1672760143749,2236.1482125,12.79,12.786,131.93476116]
[1672760146500,2236.1482125,12.79,12.786,73.22476116]
[1672760146704,2236.1482125,12.79,12.787,58.71]
[1672760146916,2236.1482125,12.79,12.786,73.22476116]
[1672760147444,2236.1482125,12.79,12.785,53.52413595]
[1672760147657,2236.1482125,12.79,12.786,131.93476116]
[1672760147848,2236.1482125,12.79,12.788,30.0]
[1672760148059,1993.5482125,12.79,12.789,58.7]
[1672760148279,1993.5482125,12.79,12.789,131.92476116]
[1672760148280,1918.53461688,12.79,12.789,131.92476116]
[1672760148479,1808.71856283,12.79,12.789,131.92476116]
[1672760148900,1726.9284809,12.79,12.789,161.92476116]
[1672760149333,1726.9284809,12.79,12.789,292.70751911]
[1672760149949,1688.74516592,12.79,12.789,292.70751911]
[1672760151021,1612.37853595,12.79,12.789,292.70751911]
[1672760151237,1612.37853595,12.79,12.789,328.14186878]
[1672760151424,1265.46993056,12.79,12.789,328.14186878]
[1672760151635,316.36748264,12.79,12.789,292.70751911]
[1672760151850,20.4864418,12.798,12.789,292.70751911]
[1672760151851,20.4864418,12.798,12.791,72.60142707]
[1672760152056,1888.22906665,12.798,12.795,35.40932037]
[1672760152390,1888.22906665,12.798,12.797,35.40932037]
[1672760152606,1888.22906665,12.798,12.797,94.06932037]
[1672760152914,1888.22906665,12.798,12.797,167.23669452]
[1672760153122,1888.22906665,12.798,12.797,161.82737415]
[1672760153973,1887.72906665,12.798,12.797,161.82737415]
[1672760154377,1887.72906665,12.798,12.797,197.23669452]
[1672760154586,1887.72906665,12.798,12.797,197.34568943]
[1672760154794,115.5335,12.815,12.797,197.34568943]
[1672760155010,369.45123661,12.798,12.797,103.16737415]
[1672760155439,369.45123661,12.798,12.797,161.82737415]
[1672760155759,1847.25618305,12.808,12.797,103.16737415]
[1672760155968,1847.25618305,12.808,12.8,43.21]
[1672760156283,1847.25618305,12.808,12.801,73.16737415]
[1672760157002,1847.25618305,12.808,12.8,38.7]
[1672760157212,1847.25618305,12.808,12.801,30.0]
[1672760157631,1847.25618305,12.808,12.791,138.55572457]
[1672760157844,117.3516,12.807,12.8,8.63]
[1672760158266,117.3516,12.807,12.8,43.15]
[1672760158481,1847.25618305,12.808,12.8,43.16]
[1672760158906,1847.25618305,12.808,12.801,103.16737415]
[1672760159112,1847.25618305,12.808,12.801,30.0]
[1672760160886,1847.25618305,12.808,12.791,138.55572457]
[1672760161102,1847.25618305,12.808,12.794,30.0]
[1672760161314,1847.25618305,12.808,12.794,160.30964484]
[1672760161540,1847.25618305,12.808,12.8,43.1]
[1672760161854,365.35394825,12.809,12.808,340.21108012]
[1672760162049,730.7078965,12.809,12.808,143.52654942]
[1672760162794,365.35394825,12.809,12.808,143.42278903]
[1672760163013,730.7078965,12.809,12.808,143.42278903]
[1672760163543,730.7078965,12.809,12.808,143.31902864]
[1672760163735,307.64834657,12.809,12.808,143.31902864]
[1672760164461,307.64834657,12.809,12.808,143.21526825]
[1672760165723,307.64834657,12.809,12.808,201.82526825]
[1672760166152,307.64834657,12.809,12.808,143.21526825]
[1672760167828,309.64834657,12.809,12.808,143.21526825]
[1672760168158,282.80556695,12.809,12.808,143.21526825]
[1672760168777,0.5,21.518,12.808,143.21526825]
[1672760168997,282.80556695,12.809,12.808,143.21526825]
[1672760170264,280.27359178,12.809,12.808,178.73244884]
[1672760171725,280.27359178,12.809,12.808,161.23228117]
[1672760172053,280.27359178,12.812,12.811,360.29526334]
[1672760172262,1121.09436712,12.812,12.811,582.94333842]
[1672760172458,1121.09436712,12.812,12.811,436.91227626]
[1672760172873,1121.09436712,12.812,12.811,466.91227626]
[1672760173840,359.08533744,12.82,12.811,538.25965041]
[1672760174052,1121.09436712,12.812,12.811,461.64263749]
[1672760174238,1121.09436712,12.812,12.811,466.90528429]
[1672760174454,1121.09436712,12.812,12.811,408.30528429]
[1672760175294,1121.09436712,12.812,12.811,707.01159833]
[1672760175724,1121.09436712,12.812,12.811,910.14084293]
[1672760175928,1121.09436712,12.812,12.811,928.15086388]
[1672760176139,1121.09436712,12.812,12.811,707.01159833]
[1672760176548,1121.09436712,12.812,12.811,765.61159833]
[1672760176549,280.07359179,12.812,12.811,765.61159833]
[1672760176766,280.07359179,12.812,12.811,466.90528429]